[Event "17th Paracin Open 2024"]
[Site "Paracin"]
[Date "2024.07.04"]
[Round "2.7"]
[White "Aditya Varun Gampa"]
[Black "Fernandez, Daniel Howard"]
[Result "0-1"]
[ECO "D78"]
[WhiteElo "2277"]
[BlackElo "2526"]
[Annotator "TA"]
[PlyCount "121"]
[EventDate "2024.07.02"]
[EventType "swiss"]
[EventCountry "SRB"]
[SourceTitle "playchess.com"]
[Source "ChessBase"]
[SourceQuality "1"]
[TimeControl "5400+30"]

{[%evp 17,121,6,60,62,53,52,52,47,59,27,27,28,35,26,31,-39,-47,-6,-9,-4,-12,-11,-9,-8,0,-29,-8,-14,-17,-40,-4,-62,-54,-55,-37,-34,-34,-82,-83,-93,-96,-95,-98,-91,-85,-88,-53,-95,-95,-101,-88,-233,-243,-241,-234,-250,-236,-220,-221,-389,-393,-439,-429,-459,-470,-657,-666,-921,-458,-4810,-3335,-2749,-1454,-5597,-1301,-5185,-4331,-6382,-5373,-6095,-5111,-29973,-29974,-29974,-29975,-29975,-29976,-29976,-29977,-29977,-29978,-29979,-29980,-29980,-29981,-29981,-29982,-29982,-29983,-29983,-29984,-29984,-29985,-29985,-29986,-29986]} 1. Nf3 {[%emt 0:00:32]} Nf6 {[%emt 0:04:28]} 2. c4 {[%emt 0:01:30]} c6 {[%emt 0:00:17]} 3. d4 {[%emt 0:03:38]} d5 {[%emt 0:00:03]} 4. Nbd2 {[%emt 0:05:33]} g6 {[%emt 0:04:10]} 5. g3 {[%emt 0:00:30]} Bg7 {[%emt 0:00:46]} 6. Bg2 {[%emt 0:00:15]} O-O {[%emt 0:00:03]} 7. O-O {[%emt 0:00:15]} a5 {[%emt 0:00:16]} 8. b3 {[%emt 0:03:02]} Bf5 {[%emt 0:06:22]} 9. Nh4 {[%emt 0:06:52] D78: Fianchetto Grünfeld: 6 0-0 c6.} Ne4 {[%emt 0:05:40]} (9... Be6 $11) 10. Nxf5 $14 {[%emt 0:05:45]} gxf5 {[%emt 0:00:02]} 11. e3 {[%emt 0:07:28]} e6 $146 {[%emt 0:06:05]} ({Predecessor:} 11... Nd7 12. a4 e6 13. Nf3 Re8 14. Bb2 Qb6 15. Rb1 Rac8 16. Ne1 Qa6 17. Rc1 dxc4 18. Rxc4 {1-0 Ghosh,D (2544)-Robson,R (2667) PRO League Stage rapid 2019 (7)}) 12. Ba3 {[%emt 0:10:25]} Re8 {[%emt 0:01:41]} 13. f3 {[%emt 0:02:26]} Nxd2 {[%emt 0:00:32]} 14. Qxd2 {[%emt 0:00:02]} a4 {[%emt 0:00:28]} 15. Rfd1 {[%emt 0:05:22]} Nd7 {[%emt 0:03:09]} 16. e4 {[%emt 0:05:11]} (16. Bf1 $14) 16... fxe4 {[%emt 0:18:50]} 17. fxe4 {[%emt 0:00:30]} axb3 {[%emt 0:14:17]} 18. axb3 {[%emt 0:00:14]} dxc4 {[%emt 0:00:02]} 19. bxc4 {[%emt 0:01:18]} c5 {[%emt 0:00:01]} 20. Bb2 $1 {[%emt 0:04:16]} Nb6 {[%emt 0:01:32]} 21. Qe2 {[%emt 0:08:06]} (21. dxc5 $2 Qxd2 (21... Nxc4 22. Qc1 $11) 22. Rxd2 Nxc4 (22... Rxa1+ 23. Bxa1 Nxc4 24. Rc2 $17) (22... Bxb2 23. Rxa8 Rxa8 24. cxb6 $11) 23. Rxa8 Rxa8 24. Bxg7 Nxd2 $19) 21... Rxa1 {[%emt 0:03:45]} (21... Bxd4+ 22. Bxd4 cxd4 23. Rxa8 Qxa8 24. e5 $11 (24. Rxd4 Qa1+ 25. Rd1 Qe5 $15)) 22. Bxa1 {[%emt 0:00:11]} cxd4 {[%emt 0:00:40]} 23. c5 {[%emt 0:06:24]} Nd7 {[%emt 0:01:21]} 24. Bxd4 {[%emt 0:01:16]} ({White should play} 24. e5 $1 $11) 24... Bxd4+ $15 {[%emt 0:00:25]} 25. Rxd4 {[%emt 0:00:06]} Qc7 {[%emt 0:00:58]} 26. Qb5 {[%emt 0:05:19]} Re7 {[%emt 0:00:02]} (26... Qxc5 $2 {perishes.} 27. Qxd7 Ra8 28. Qd6 Ra1+ 29. Bf1 Qxd6 30. Rxd6 $18) 27. Rc4 {[%emt 0:01:17]} (27. c6 $15 Qe5 (27... bxc6 28. Qg5+ Kf8 29. Qh6+ Ke8 30. Rd1 $15) 28. Qxe5 Nxe5 29. cxb7 Rxb7 30. Ra4) 27... Ne5 $17 {[%emt 0:00:16]} 28. Rc1 {[%emt 0:02:45]} Qd8 {[%emt 0:08:57]} 29. Qb2 {[%emt 0:02:55] [#]} Nd3 $1 {[%emt 0:00:19]} 30. Rd1 {[%emt 0:00:50]} Rd7 {[%emt 0:00:05]} 31. Qb5 {[%emt 0:04:05]} Rd4 {[%emt 0:01:39]} (31... Ne5 {simplifies} 32. Rxd7 Qxd7 33. Qxd7 Nxd7 34. e5 Nxc5 35. Kf2 b5) 32. e5 {[%emt 0:02:15]} Nxe5 {[%emt 0:03:37]} 33. Rf1 {[%emt 0:00:18]} Rd1 {[%emt 0:02:08]} 34. Qb2 {[%emt 0:02:04]} (34. h3 $17 {was worth a try.}) 34... Rxf1+ $19 {[%emt 0:01:07]} 35. Bxf1 {[%emt 0:00:03]} Qd5 {[%emt 0:02:07]} 36. Qb4 {[%emt 0:03:38]} Nd7 {[%emt 0:00:35]} 37. Qg4+ {[%emt 0:00:14]} Kf8 {[%emt 0:00:25]} 38. h4 $2 {[%emt 0:00:11]} (38. Qh4) 38... Qxc5+ $19 {[%emt 0:00:14]} ({Not} 38... Nxc5 39. Qb4 $19) 39. Kh2 {[%emt 0:00:07]} b5 {[%emt 0:02:30]} 40. Qd1 {[%emt 0:01:15]} Nf6 {[%emt 0:00:47]} 41. Qd8+ {[%emt 0:01:30]} Kg7 {[%emt 0:00:09]} 42. Qa5 {[%emt 0:00:10]} Ne4 {[%emt 0:02:08]} (42... Qf2+ $142 43. Bg2 Qc5 (43... Ng4+ $2 44. Kh3 $19)) 43. Qa1+ {[%emt 0:00:37]} (43. Qe1 $142 Nf6 44. Kh1) 43... Qc3 $19 {[%emt 0:00:42]} 44. Qxc3+ {[%emt 0:00:04]} Nxc3 {[%emt 0:00:04]} 45. Kg2 {[%emt 0:00:03]} b4 {[%emt 0:00:40]} 46. Bc4 {[%emt 0:00:04]} Ne4 {[%emt 0:01:04]} 47. Bd3 {[%emt 0:00:06]} f5 {[%emt 0:00:58]} 48. Kf3 {[%emt 0:00:15]} b3 {[%emt 0:00:28]} 49. g4 {[%emt 0:01:37]} Nc5 {[%emt 0:01:14]} 50. Bb1 {[%emt 0:00:23]} fxg4+ {[%emt 0:00:08]} 51. Kxg4 {[%emt 0:00:05]} Na4 {[%emt 0:00:42]} 52. Kf4 {[%emt 0:00:14]} Nc3 {[%emt 0:00:09]} 53. Bd3 {[%emt 0:00:05]} b2 {[%emt 0:00:29]} 54. Ke5 {[%emt 0:00:03]} b1=Q {[%emt 0:00:14]} 55. Bxb1 {[%emt 0:00:03]} Nxb1 {[%emt 0:00:06]} 56. Kxe6 {[%emt 0:00:03]} Kg6 {[%emt 0:00:09]} 57. h5+ {[%emt 0:00:06]} Kxh5 {[%emt 0:00:18]} 58. Kf5 {[%emt 0:00:02]} Nd2 {[%emt 0:00:18]} 59. Kf4 {[%emt 0:00:04]} Kh4 {[%emt 0:00:06]} 60. Ke3 {[%emt 0:00:02]} Kg3 {[%emt 0:00:10]} 61. Kxd2 {[%emt 0:00:04]} 0-1

[Event "17th Paracin Open 2024"]
[Site "Paracin"]
[Date "2024.07.04"]
[Round "2.8"]
[White "Mardov, Dimitar"]
[Black "Bicer, Atakan Mert"]
[Result "1-0"]
[ECO "E87"]
[WhiteElo "2484"]
[BlackElo "2313"]
[Annotator "TA"]
[PlyCount "75"]
[EventDate "2024.07.02"]
[EventType "swiss"]
[EventCountry "SRB"]
[SourceTitle "playchess.com"]
[Source "ChessBase"]
[SourceQuality "1"]
[TimeControl "5400+30"]

{[%evp 18,75,56,8,52,62,82,83,75,75,84,21,26,23,49,44,59,22,90,93,88,88,95,14,14,12,87,72,116,117,120,110,122,115,115,115,248,248,255,242,252,241,292,291,397,394,367,360,606,816,816,809,776,708,735,727,785,696,676,662]} 1. d4 {[%emt 0:00:02]} Nf6 {[%emt 0:01:52]} 2. c4 {[%emt 0:00:17]} g6 {[%emt 0:00:11]} 3. Nc3 {[%emt 0:01:45]} Bg7 {[%emt 0:00:13]} 4. e4 {[%emt 0:01:28]} d6 {[%emt 0:00:08]} 5. Bd3 {[%emt 0:01:14]} O-O {[%emt 0:00:22]} 6. Nge2 {[%emt 0:01:20]} e5 {[%emt 0:04:04]} 7. d5 {[%emt 0:03:07]} a5 {[%emt 0:07:57]} 8. O-O {[%emt 0:02:50]} Na6 {[%emt 0:01:35]} 9. f3 {[%emt 0:05:46]} Nc5 {[%emt 0:14:01]} 10. Be3 {[%emt 0:04:41]} (10. Bc2 $14) 10... Ne8 {[%emt 0:05:23]} 11. Bc2 {[%emt 0:10:26]} Qe7 {[%emt 0:08:17]} 12. a3 {[%emt 0:12:50]} f5 {[%emt 0:09:51] White is better.} 13. exf5 {[%emt 0:04:17]} gxf5 {[%emt 0:00:09]} 14. f4 {[%emt 0:02:41] White is more active.} (14. b4 $16 Nd7 15. Qd2) 14... Nf6 {[%emt 0:03:55]} 15. h3 {[%emt 0:03:14] Inhibits Ng4. Strongly threatening fxe5.} Nh5 {[%emt 0:09:54]} 16. Qd2 {[%emt 0:07:15]} Bd7 {[%emt 0:05:08]} 17. Rad1 {[%emt 0:05:46]} Rae8 {[%emt 0:05:56] [#]} (17... e4 $11) 18. fxe5 $1 $16 {[%emt 0:01:35]} Bxe5 {[%emt 0:01:06]} 19. Bg5 {[%emt 0:03:14]} Qf7 {[%emt 0:03:39]} 20. Rf3 {[%emt 0:06:03]} ({Better is} 20. Bh6 $16) 20... Qg6 $1 $11 {[%emt 0:03:56]} 21. Rdf1 {[%emt 0:02:17] aiming for g4.} Ng7 {[%emt 0:06:34]} (21... a4 $11 {remains equal.}) 22. h4 $16 {[%emt 0:05:09]} Ne4 {[%emt 0:01:41]} 23. Nxe4 {[%emt 0:01:32]} fxe4 {[%emt 0:00:06]} 24. Nf4 {[%emt 0:04:53]} (24. Qxa5 $2 exf3 25. Bxg6 fxe2 $19) 24... Bxf4 {[%emt 0:02:19]} 25. Rxf4 {[%emt 0:00:23][%cal Oc2e4] Black must now prevent Bxe4!} ({Don't play} 25. Bxf4 $6 Nf5 26. Rc3 (26. Rh3 Qg7 $11) 26... Nxh4 $11) 25... Bf5 {[%emt 0:01:13] [#]} 26. g4 {[%emt 0:03:34][%cal Bg2g4,Bg4f5,Bf5f6][%mdl 32] Dodges Nh5} (26. Qxa5 $2 h6 27. Bxh6 Qxh6 $19) 26... e3 {[%emt 0:00:22] Loses the game.} (26... Bxg4 $16 27. Rxg4 Rxf1+ 28. Kxf1 h6) 27. gxf5 $18 {[%emt 0:01:28]} Qxg5+ {[%emt 0:00:13]} 28. hxg5 {[%emt 0:00:04]} exd2 {[%emt 0:00:07]} 29. f6 $40 {[%emt 0:01:46][%mdl 128] f7+ would now be deadly. White wants a kill.} Re1 {[%emt 0:00:34]} 30. R4f2 {[%emt 0:01:03]} (30. fxg7 $2 {perishes.} Rxf4 31. Kh2 Rfxf1 $19 (31... Rexf1 $2 32. Kg3 $19)) 30... Nh5 {[%emt 0:03:26] Threatens to win with ...Ng3.} 31. Rxd2 {[%emt 0:00:31]} Rxf1+ {[%emt 0:00:56]} 32. Kxf1 {[%emt 0:00:03][%mdl 4096] Endgame. KRB-KRN} b5 $2 {[%emt 0:00:45]} (32... h6 33. Rh2 (33. gxh6 Rxf6+ 34. Ke2 Rxh6 $11) 33... Nxf6 34. gxf6 Rxf6+ 35. Ke2 Kf8) 33. Rh2 {[%emt 0:00:34] White is clearly winning.} Nxf6 {[%emt 0:00:24]} 34. gxf6 {[%emt 0:00:04]} Rxf6+ {[%emt 0:00:05]} 35. Ke2 {[%emt 0:00:14]} bxc4 {[%emt 0:00:28]} 36. Rxh7 {[%emt 0:00:26]} Rf4 {[%emt 0:00:13]} 37. Rxc7 {[%emt 0:00:10]} Rd4 {[%emt 0:00:08]} 38. Bf5 {[%emt 0:01:07] Weighted Error Value: White=0.14 (very precise) /Black=0.42.  Mistake:       	White=2     	Black=4      Inaccurate:     	White=1     	Black=3      OK:         	White=12    	Black=7      Best:        	White=3     	---        Strong:       	White=1     	Black=1} 1-0

[Event "17th Paracin Open 2024"]
[Site "Paracin"]
[Date "2024.07.04"]
[Round "2.9"]
[White "Gov, Guy"]
[Black "Bhattacharyya Soham"]
[Result "0-1"]
[ECO "B18"]
[WhiteElo "2236"]
[BlackElo "2477"]
[Annotator "RC"]
[PlyCount "110"]
[EventDate "2024.07.02"]
[EventType "swiss"]
[EventCountry "SRB"]
[SourceTitle "playchess.com"]
[Source "ChessBase"]
[SourceQuality "1"]
[TimeControl "5400+30"]

1. e4 {[%emt 0:05:12]} c6 {[%emt 0:01:11]} 2. Nc3 {[%emt 0:00:13]} d5 {[%emt 0:00:08]} 3. d4 {[%emt 0:00:03]} dxe4 {[%emt 0:00:30]} 4. Nxe4 {[%emt 0:00:06]} Bf5 {[%emt 0:00:17]} 5. Ng3 {[%emt 0:00:06]} Bg6 {[%emt 0:00:06]} 6. N1e2 {[%emt 0:00:23]} Nf6 {[%emt 0:01:23]} 7. Nf4 {[%emt 0:01:04]} e5 {[%emt 0:01:41]} 8. Nxg6 {[%emt 0:06:39]} hxg6 {[%emt 0:00:11]} 9. Be3 {[%emt 0:03:34]} Qa5+ {[%emt 0:10:51]} 10. c3 {[%emt 0:09:27]} Nbd7 {[%emt 0:25:29]} 11. Qb3 {[%emt 0:02:42]} exd4 {[%emt 0:03:29]} 12. Bxd4 {[%emt 0:03:39]} Bc5 {[%emt 0:04:53]} 13. O-O-O {[%emt 0:03:47]} O-O {[%emt 0:04:07]} 14. Be2 {[%emt 0:09:20]} Rad8 {[%emt 0:07:06]} 15. h4 {[%emt 0:07:14]} Bxd4 {[%emt 0:02:48]} 16. cxd4 {[%emt 0:00:32]} c5 {[%emt 0:04:51]} 17. h5 {[%emt 0:07:59]} cxd4 {[%emt 0:08:14]} 18. hxg6 {[%emt 0:00:05]} Qg5+ {[%emt 0:01:40]} 19. Kb1 {[%emt 0:02:54]} Qxg6+ {[%emt 0:00:43]} 20. Bd3 {[%emt 0:04:05]} Nc5 {[%emt 0:02:57]} 21. Bxg6 {[%emt 0:07:07]} Nxb3 {[%emt 0:00:31]} 22. Bc2 {[%emt 0:16:57]} Na5 {[%emt 0:01:56]} 23. Rh3 {[%emt 0:03:08]} g6 {[%emt 0:03:40]} 24. Nf5 {[%emt 0:00:38]} d3 {[%emt 0:04:32]} 25. Bxd3 {[%emt 0:00:31]} gxf5 {[%emt 0:01:20]} 26. Rg3+ {[%emt 0:00:05]} Ng4 {[%emt 0:00:05]} 27. f3 {[%emt 0:00:08]} Nc4 {[%emt 0:02:07]} 28. fxg4 {[%emt 0:03:28]} f4 {[%emt 0:00:01]} 29. Rf3 {[%emt 0:03:02]} Ne5 {[%emt 0:02:57]} 30. Rh3 {[%emt 0:00:00]} f3 {[%emt 0:02:40]} 31. Bh7+ {[%emt 0:01:19]} Kg7 {[%emt 0:00:01]} 32. Rxd8 {[%emt 0:00:29]} Rxd8 {[%emt 0:00:01]} 33. gxf3 {[%emt 0:00:01]} Rh8 {[%emt 0:01:01]} 34. f4 {[%emt 0:00:01]} Nc6 {[%emt 0:01:27]} 35. Rb3 {[%emt 0:00:00]} Rxh7 {[%emt 0:00:13]} 36. Rxb7 {[%emt 0:00:02]} Rh4 {[%emt 0:01:43]} 37. b4 {[%emt 0:00:46]} Rxg4 {[%emt 0:00:39]} 38. b5 {[%emt 0:00:00]} Nd4 {[%emt 0:00:55]} 39. a4 {[%emt 0:00:01]} Rxf4 {[%emt 0:00:06]} 40. Rxa7 {[%emt 0:00:04]} Rf3 {[%emt 0:01:05]} 41. Rd7 {[%emt 0:01:18]} Rb3+ {[%emt 0:00:35]} 42. Ka2 {[%emt 0:00:01]} Rb4 {[%emt 0:00:05]} 43. Ka3 {[%emt 0:00:37]} Nc2+ {[%emt 0:00:20]} 44. Ka2 {[%emt 0:00:00]} Rxa4+ {[%emt 0:00:06]} 45. Kb3 {[%emt 0:00:05]} Rd4 {[%emt 0:00:05]} 46. Rc7 {[%emt 0:04:00]} Ne3 {[%emt 0:00:48]} 47. b6 {[%emt 0:00:00]} Nd5 {[%emt 0:00:48]} 48. b7 {[%emt 0:00:20]} Rb4+ {[%emt 0:00:18]} 49. Ka3 {[%emt 0:00:01]} Rb6 {[%emt 0:00:14]} 50. Rd7 {[%emt 0:00:42]} Nc3 {[%emt 0:00:42]} 51. Re7 {[%emt 0:01:34]} Nb5+ {[%emt 0:00:10]} 52. Kb4 {[%emt 0:00:29]} Nd6+ {[%emt 0:00:17]} 53. Kc5 {[%emt 0:00:27]} Rxb7 {[%emt 0:00:04]} 54. Kxd6 {[%emt 0:00:25]} Rxe7 {[%emt 0:00:07]} 55. Kxe7 {[%emt 0:00:04]} f5 {[%emt 0:00:05]} 0-1

[Event "17th Paracin Open 2024"]
[Site "Paracin"]
[Date "2024.07.04"]
[Round "2.10"]
[White "Bryakin, Mikhail"]
[Black "Devnani Kush"]
[Result "1-0"]
[ECO "D13"]
[WhiteElo "2469"]
[BlackElo "2250"]
[Annotator "TA"]
[PlyCount "93"]
[EventDate "2024.07.02"]
[EventType "swiss"]
[EventCountry "SRB"]
[SourceTitle "playchess.com"]
[Source "ChessBase"]
[SourceQuality "1"]
[TimeControl "5400+30"]

{[%evp 15,93,10,21,33,31,31,20,23,12,20,17,25,18,21,18,7,27,20,38,48,41,46,81,74,78,76,83,59,74,73,166,88,92,84,98,76,87,83,87,69,66,70,127,132,131,139,167,162,350,325,353,351,345,341,322,318,605,596,720,666,627,539,525,378,458,283,535,441,5591,2342,1656,2087,6183,5489,29968,29968,29974,29974,29978,29978]} 1. d4 {[%emt 0:01:34]} d5 {[%emt 0:00:22]} 2. c4 {[%emt 0:00:09]} c6 {[%emt 0:00:09]} 3. cxd5 {[%emt 0:00:18]} cxd5 {[%emt 0:00:06]} 4. Bf4 {[%emt 0:00:09]} Nf6 {[%emt 0:00:31][%cal Bg8f6,Bf6h5,Bh5f4][%mdl 32]} 5. Nc3 {[%emt 0:00:26]} Nc6 {[%emt 0:00:31]} 6. e3 {[%emt 0:00:14]} a6 {[%emt 0:00:09]} 7. Be2 {[%emt 0:00:12]} Bf5 {[%emt 0:00:28]} 8. Nf3 {[%emt 0:00:16]} e6 {[%emt 0:00:22]} 9. Qb3 {[%emt 0:00:14]} Nh5 {[%emt 0:01:12]} 10. Qxb7 {[%emt 0:08:22]} Na5 {[%emt 0:00:09]} 11. Qc7 {[%emt 0:00:12] The position is equal.} Nxf4 {[%emt 0:00:16]} 12. Qxd8+ {[%emt 0:00:08]} Rxd8 {[%emt 0:02:24]} 13. exf4 {[%emt 0:10:53]} Rb8 {[%emt 0:01:49]} 14. O-O-O {[%emt 0:00:43][%cal Of3h4,Ba1d1,Bd1d2,Bd2c2,Be1c1,Bc1d2,Bd2e3][%mdl 32]} Bb4 {[%emt 0:25:46]} (14... Bd6 {is more complex.} 15. Ne5 f6 16. g4 Be4) 15. Nh4 {[%emt 0:02:12] And now Nxf5 would win.} Bxc3 {[%emt 0:05:57]} 16. bxc3 {[%emt 0:01:32][%cal Oh4f5] Threatens to win with Nxf5!} Rb1+ {[%emt 0:09:00]} 17. Kd2 {[%emt 0:00:19]} Rb2+ {[%emt 0:00:09]} 18. Ke3 {[%emt 0:01:19] Hoping for Nxf5.} O-O {[%emt 0:15:52]} (18... Rxa2 $2 19. Ra1 (19. Bxa6 Nb3 $16) 19... Rxa1 20. Rxa1 Nc4+ 21. Bxc4 dxc4 22. Rxa6 $18) 19. Rd2 $36 {[%emt 0:07:21][%mdl 2048] White has strong initiative.} ({But not} 19. Bxa6 $6 Ra8 (19... Rxa2 $2 {too greedy.} 20. Ra1 $18) 20. Be2 Rc8 (20... Rxa2 21. Nxf5 exf5 22. Bd3 $11) 21. Nxf5 Rxc3+ 22. Rd3 Nc4+ 23. Kf3 Nd2+ 24. Ke3 Nc4+ 25. Kf3 Nd2+ 26. Kg3 Ne4+ (26... exf5 $2 27. Rxc3 Ne4+ 28. Kf3 $18) 27. Kh4 (27. Kf3 Rcc2 $11) 27... exf5 (27... Rxe2 28. Rxc3 Nxc3 29. Rc1 $11) 28. Rxc3 Nxc3 $11) (19. Nxf5 exf5 20. Rhe1 (20. Bxa6 Ra8 $11) 20... Rc8 $11) 19... Rb6 {[%emt 0:04:40]} 20. Nxf5 {[%emt 0:04:43]} exf5 {[%emt 0:00:06]} 21. Rc2 {[%emt 0:01:00]} Rc8 {[%emt 0:02:53]} 22. Rhc1 {[%emt 0:01:14]} Rbc6 {[%emt 0:04:20]} (22... g6 $16 {was worth a try.}) 23. Bd3 {[%emt 0:03:54]} ({White should play} 23. Kd3 $18) 23... g6 $16 {[%emt 0:01:15]} 24. Kd2 {[%emt 0:00:37]} Rb8 {[%emt 0:03:48] Prevents Rb2} 25. g3 {[%emt 0:05:09]} Kf8 {[%emt 0:00:28]} 26. Re1 {[%emt 0:04:32]} f6 {[%emt 0:00:55]} 27. h3 {[%emt 0:00:38]} Kf7 {[%emt 0:07:22]} 28. g4 {[%emt 0:01:28]} fxg4 {[%emt 0:00:43] White stays focused until the end.} (28... Nc4+ $14 29. Bxc4 dxc4) 29. hxg4 {[%emt 0:00:18]} Rb7 {[%emt 0:03:21]} 30. f5 {[%emt 0:03:41]} g5 {[%emt 0:00:45]} 31. Rec1 {[%emt 0:06:01]} Kg7 $2 {[%emt 0:00:24] [#]} (31... Rd6 32. c4 dxc4 33. Bxc4+ Kg7) 32. c4 $1 $18 {[%emt 0:04:23]} Nxc4+ {[%emt 0:04:58]} 33. Bxc4 {[%emt 0:00:28]} dxc4 {[%emt 0:00:03]} 34. Rxc4 {[%emt 0:01:03]} Rxc4 {[%emt 0:01:00]} 35. Rxc4 {[%emt 0:32:18][%mdl 4096] Endgame. KR-KR} h5 $2 {[%emt 0:00:40]} (35... Rb5 36. Rc7+ Kh8) 36. gxh5 {[%emt 0:00:00][%cal Bg4h5,Bh5h6,Bh6h7][%mdl 32]} Rb5 {[%emt 0:00:45]} 37. Rc5 {[%emt 0:00:00] Rxb5 would kill now.} Rb2+ {[%emt 0:00:17]} 38. Rc2 {[%emt 0:00:00]} Rb5 {[%emt 0:00:04]} 39. Ke3 {[%emt 0:00:00]} Rxf5 {[%emt 0:00:05]} 40. Rd2 {[%emt 0:00:00] aiming for d5.} g4 $2 {[%emt 0:01:04]} (40... Kf7 41. Ke4 Rf4+ 42. Kd5 Rh4) 41. h6+ {[%emt 0:00:00]} Kf7 {[%emt 0:01:45]} (41... Kxh6 $142 42. d5 Re5+ 43. Kf4 Kg6) 42. h7 {[%emt 0:00:00]} Rh5 {[%emt 0:01:06]} 43. Rc2 {[%emt 0:00:00]} Kg6 {[%emt 0:00:43] [#]} 44. Rc7 $1 {[%emt 0:00:00]} Rh1 {[%emt 0:00:50]} 45. d5 {[%emt 0:00:00][%cal Bd4d5,Bd5d6,Bd6d7][%mdl 32] White mates.} Kf5 {[%emt 0:00:13]} 46. d6 {[%emt 0:00:00]} Ke6 {[%emt 0:00:20]} 47. d7 {[%emt 0:00:00] Weighted Error Value: White=0.16 (very precise) /Black=0.51.  Mistake:       	White=1     	Black=6      Inaccurate:     	White=1     	Black=2      OK:         	White=13    	Black=10     Best:        	White=4     	Black=2      Strong:       	White=1     	---} 1-0

[Event "17th Paracin Open 2024"]
[Site "Paracin"]
[Date "2024.07.04"]
[Round "2.11"]
[White "Atalik, Suat"]
[Black "Doraszelski, Alexander"]
[Result "1-0"]
[ECO "D31"]
[WhiteElo "2450"]
[BlackElo "2116"]
[Annotator "TA"]
[PlyCount "65"]
[EventDate "2024.07.02"]
[EventType "swiss"]
[EventCountry "SRB"]
[SourceTitle "playchess.com"]
[Source "ChessBase"]
[SourceQuality "1"]
[TimeControl "5400+30"]

{[%evp 9,65,28,38,27,68,18,23,18,25,17,16,13,27,26,31,12,29,19,35,12,37,16,16,28,97,92,130,45,122,122,116,112,116,31,32,25,27,35,87,89,200,185,218,195,305,300,537,357,451,346,406,204,425,428,442,433,433,362]} 1. d4 {[%emt 0:00:05]} d5 {[%emt 0:03:21]} 2. c4 {[%emt 0:00:15]} e6 {[%emt 0:00:45]} 3. Nf3 {[%emt 0:00:41]} a6 {[%emt 0:00:08]} 4. cxd5 {[%emt 0:00:22]} exd5 {[%emt 0:00:07]} 5. Nc3 {[%emt 0:00:24]} c6 {[%emt 0:00:08]} 6. Qb3 {[%emt 0:03:42]} Be7 {[%emt 0:14:53]} 7. Bf4 {[%emt 0:03:59]} (7. e4 $14) 7... Nf6 $11 {[%emt 0:02:35]} 8. e3 {[%emt 0:00:06] White has an edge.} O-O {[%emt 0:01:24]} 9. Bxb8 {[%emt 0:12:25]} Rxb8 {[%emt 0:00:09]} 10. Bxa6 {[%emt 0:00:06]} Bg4 {[%emt 0:06:18] White must now prevent ...Bxf3.} 11. Be2 {[%emt 0:02:08]} (11. Bxb7 $2 {is the wrong capture.} Bxf3 12. gxf3 Qc7 $19) 11... Bd6 {[%emt 0:01:26]} 12. Qc2 {[%emt 0:02:33]} Qe7 {[%emt 0:02:29]} 13. h3 {[%emt 0:08:49]} Bd7 {[%emt 0:02:13]} 14. Bd3 {[%emt 0:00:36]} Rbe8 {[%emt 0:06:43]} 15. Rd1 {[%emt 0:10:31]} Kh8 {[%emt 0:04:13]} 16. a3 {[%emt 0:02:00]} b5 {[%emt 0:08:23] [#]} (16... g6 $11 {keeps the balance.}) 17. O-O $1 $16 {[%emt 0:04:03]} Bb8 {[%emt 0:09:37]} 18. b4 {[%emt 0:09:59]} (18. Rfe1 $16) 18... Ne4 {[%emt 0:01:54]} (18... g5 $14) 19. Bxe4 {[%emt 0:01:21]} dxe4 {[%emt 0:00:07] [#]} 20. Ne5 {[%emt 0:00:04][%mdl 512]} f5 {[%emt 0:03:39]} 21. f4 {[%emt 0:02:26] White is much more active.} (21. Ne2 $16) 21... exf3 $14 {[%emt 0:03:01]} 22. Rxf3 {[%emt 0:00:25]} Bxe5 {[%emt 0:02:04]} 23. dxe5 {[%emt 0:00:08]} Rd8 {[%emt 0:00:07]} (23... Rf7 $14) 24. e4 $16 {[%emt 0:05:26]} f4 {[%emt 0:04:32] [#]} (24... Qxe5 $16 {keeps fighting.} 25. exf5 g6) 25. Rd6 $1 $18 {[%emt 0:04:37]} Be8 {[%emt 0:04:49]} 26. Qd2 {[%emt 0:01:17]} Bh5 {[%emt 0:02:32]} (26... Ra8 $142) 27. Rxf4 {[%emt 0:01:48]} Rc8 $2 {[%emt 0:01:14]} (27... Rfe8 28. Qd4 Kg8) 28. Rxf8+ {[%emt 0:03:18]} Rxf8 {[%emt 0:01:15]} 29. e6 {[%emt 0:00:25]} Qf6 {[%emt 0:01:03]} 30. Nd1 {[%emt 0:11:09]} (30. Rxc6 $142 Be8 31. Ra6) 30... Bxd1 $2 {[%emt 0:03:17]} (30... Kg8 31. Qe1 (31. Rxc6 Qf1+ 32. Kh2 Qxd1 $16) 31... h6 32. Rxc6 Qd4+ 33. Nf2 Be8) 31. Qxd1 {[%emt 0:00:37] White is clearly winning.} h6 {[%emt 0:01:03]} 32. Rxc6 {[%emt 0:02:14]} Qh4 {[%emt 0:01:32]} 33. Rc2 {[%emt 0:03:43] Weighted Error Value: White=0.40/Black=0.56.  Mistake:       	White=4     	Black=7      Inaccurate:     	White=1     	Black=2      OK:         	White=5     	Black=5      Best:        	White=3     	Black=1      Strong:       	White=2     	---        Brilliant:      	White=1     	---} 1-0